fUSD/lending_fUSD_20260408
["ID","MTS","AMOUNT","RATE_DAILY","PERIOD"]
[420057422,1775638595941,-500.0,9.999e-05,2]
[420057423,1775638595970,-404.13501419,9.999e-05,2]
[420057424,1775638596235,-95.86498581,9.999e-05,2]
[420057425,1775638596263,-500.0,9.999e-05,2]
[420057426,1775638596292,-404.13501419,9.999e-05,2]
[420057427,1775638596426,-95.86498581,9.999e-05,2]
[420057428,1775638596457,-479.98228702,9.999e-05,2]
[420057429,1775638596484,-156.99001605,9.999e-05,2]
[420057430,1775638596514,-267.16271112,9.999e-05,2]
[420057431,1775638596729,-232.83728888,9.999e-05,2]
[420057432,1775638596759,-500.0,9.999e-05,2]
[420057433,1775638596788,-267.16271112,9.999e-05,2]
[420057434,1775638597306,-1000.0,9.973e-05,2]
[420057435,1775638597621,-603.43673346,9.973e-05,2]
[420057436,1775638597653,-232.83728888,9.999e-05,2]
[420057437,1775638597683,-163.72597766,9.999e-05,2]
[420057438,1775638599404,-336.27402234,9.999e-05,2]
[420057439,1775638599433,-500.0,9.999e-05,2]
[420057440,1775638599463,-163.72597766,9.999e-05,2]
[420057441,1775638600148,-36.27402234,9.999e-05,2]
[420057442,1775638600172,-585.93927029,9.999e-05,2]
[420057443,1775638600198,-377.78670737,0.0001,2]
[420057444,1775638601067,-1000.0,0.0001,2]
[420057445,1775638602007,-1000.0,0.0001,2]
[420057446,1775638603192,-1000.0,9.997e-05,2]
[420057447,1775638604197,-1000.0,9.997e-05,2]
[420057448,1775638609364,-657.0,9.973e-05,2]
[420057449,1775638660228,2500.0,9.9e-05,2]
[420057450,1775638729767,2949.3464,9.9e-05,2]
[420057451,1775638749680,1137.82,9.952e-05,2]
[420057452,1775638756449,1137.82,9.952e-05,2]
[420057453,1775638787375,200.0,9.94e-05,2]
[420057456,1775638817006,2500.0,9.9e-05,2]
[420057462,1775638966617,695.9201,9.897e-05,2]
[420057463,1775638972874,4304.0899,9.897e-05,2]
[420057464,1775638972897,5000.01,9.897e-05,2]
[420057465,1775638972920,1121.9215,9.897e-05,2]
[420057466,1775638979241,2500.0,9.9e-05,2]
[420057467,1775639074102,2361.38,9.779e-05,2]
[420057468,1775639092172,197.0,0.000101,20]
[420057469,1775639124656,3322.9215,9.897e-05,2]
[420057471,1775639131063,1815.7085,9.897e-05,2]
[420057472,1775639131087,7354.6695,9.897e-05,2]
[420057473,1775639137632,1955.2951,9.9e-05,2]
[420057474,1775639179508,1000.0,9.819e-05,2]
[420057476,1775639260286,10000.01,8e-05,2]
[420057477,1775639260310,601.70066966,8e-05,2]
[420057479,1775639406580,9398.30933034,9.89e-05,2]
[420057480,1775639406609,10000.01,9.89e-05,2]
[420057481,1775639406635,10000.01,9.89e-05,2]
[420057482,1775639406662,10000.01,9.89e-05,2]
[420057483,1775639406690,10000.01,9.89e-05,2]
[420057484,1775639406716,10000.01,9.89e-05,2]
[420057485,1775639406743,10000.01,9.89e-05,2]
[420057486,1775639406785,10000.01,9.89e-05,2]
[420057487,1775639406814,10000.01,9.89e-05,2]
[420057488,1775639406842,10000.01,9.89e-05,2]
[420057489,1775639407427,4000.01,9.89e-05,2]
[420057490,1775639407455,5000.01,9.89e-05,2]
[420057491,1775639407484,5000.01,9.89e-05,2]
[420057492,1775639407511,5000.01,9.89e-05,2]
[420057493,1775639407537,5000.01,9.89e-05,2]
[420057494,1775639407564,5000.01,9.89e-05,2]
[420057495,1775639407591,5000.01,9.89e-05,2]
[420057496,1775639407618,5000.01,9.89e-05,2]
[420057497,1775639407646,5000.01,9.89e-05,2]
[420057498,1775639407681,5000.01,9.89e-05,2]
[420057499,1775639412689,-8101.53617288,9.89e-05,2]
[420057500,1775639412838,-10000.01,9.89e-05,2]
[420057502,1775639416371,-4888.3461993,9.89e-05,2]
[420057503,1775639417165,-10000.01,9.89e-05,2]
[420057504,1775639417360,-10000.01,9.89e-05,2]
[420057505,1775639417458,-10000.01,9.89e-05,2]
[420057506,1775639417638,-10000.01,9.89e-05,2]
[420057507,1775639417759,-10000.01,9.89e-05,2]
[420057508,1775639417886,-10000.01,9.89e-05,2]
[420057509,1775639417985,-10000.01,9.89e-05,2]
[420057510,1775639418118,-10000.01,9.89e-05,2]
[420057511,1775639418277,-10000.01,9.89e-05,2]
[420057512,1775639418426,-10000.01,9.89e-05,2]
[420057513,1775639418531,-10000.01,9.89e-05,2]
[420057514,1775639418639,-10000.01,9.89e-05,2]
[420057515,1775639418960,-5000.01,9.89e-05,2]
[420057516,1775639419074,-5000.01,9.89e-05,2]
[420057517,1775639419196,-5000.01,9.89e-05,2]
[420057518,1775639419333,-5000.01,9.89e-05,2]
[420057519,1775639419446,-5000.01,9.89e-05,2]
[420057520,1775639419570,-5000.01,9.89e-05,2]
[420057521,1775639419683,-5000.01,9.89e-05,2]
[420057522,1775639420342,-5000.01,9.89e-05,2]
[420057523,1775639420364,-5000.01,9.89e-05,2]
[420057524,1775639421503,-5000.01,9.89e-05,2]
[420057525,1775639421717,-5000.01,9.89e-05,2]
[420057527,1775639435861,-11016.321312,9.89e-05,2]
[420057537,1775639436218,-28889.04753327,9.89e-05,2]
[420057540,1775639436232,-2896.11749247,9.89e-05,2]
[420057543,1775639436244,-106530.92693593,9.89e-05,2]
[420057551,1775639436491,-5000.01,9.89e-05,2]
[420057552,1775639436673,-5000.01,9.89e-05,2]
[420057553,1775639436794,-5000.01,9.89e-05,2]
[420057554,1775639436893,-5000.01,9.89e-05,2]
[420057555,1775639437703,-287.68959405,9.89e-05,2]
[420057557,1775639437717,-1983991.23542976,9.89e-05,2]
[420057559,1775639437726,-1200.0,9.971e-05,2]
[420057561,1775639437737,-386.71698126,9.971e-05,2]
[420057563,1775639437747,-294.0,9.972e-05,2]
[420057564,1775639437757,-300.0,9.972e-05,2]
[420057565,1775639437768,-300.0,9.972e-05,2]
[420057566,1775639437777,-250.0,9.972e-05,2]
[420057567,1775639437787,-5000.0,9.973e-05,2]
[420057568,1775639437797,-2313.07312098,9.973e-05,2]
[420057569,1775639437806,-150.0,9.979e-05,2]
[420057570,1775639437816,-14319.49,9.979e-05,2]
[420057571,1775639437828,-78805.31420206,9.98e-05,2]
[420057572,1775639437838,-3221.635,9.989e-05,2]
[420057573,1775639437848,-194.425,9.989e-05,2]
[420057574,1775639437858,-500.0,9.996e-05,2]
[420057575,1775639437869,-500.0,9.996e-05,2]
[420057576,1775639437879,-500.0,9.996e-05,2]
[420057577,1775639437889,-367.99822871,9.996e-05,2]
[420057578,1775639437899,-207.55535874,9.996e-05,2]
[420057579,1775639437909,-38473.0480187,9.997e-05,2]
[420057580,1775639437919,-3331.28996329,9.999e-05,2]
[420057581,1775639437930,-386.0896306,9.999e-05,2]
[420057582,1775639437941,-410.1574892,9.999e-05,2]
[420057583,1775639437951,-150.0,0.0001,2]
[420057584,1775639437962,-249.45171685,0.0001,2]
[420057585,1775639437972,-249.45171685,0.0001,2]
[420057586,1775639437984,-249.45171685,0.0001,2]
[420057587,1775639437995,-150.99,0.0001,2]
[420057588,1775639438006,-6652.22,0.0001,2]
[420057589,1775639438016,-999.99,0.0001,2]
[420057590,1775639438026,-499.99,0.0001,2]
[420057591,1775639438037,-5383.62,0.0001,2]
[420057592,1775639438047,-8464.87,0.0001,2]
[420057593,1775639438056,-4999.99,0.0001,2]
[420057594,1775639438067,-1571.58,0.0001,2]
[420057595,1775639438077,-23419.26,0.0001,2]
[420057596,1775639438086,-299.99,0.0001,2]
[420057597,1775639438097,-9999.99,0.0001,2]
[420057598,1775639438107,-5042.98,0.0001,2]
[420057599,1775639438117,-351.58,0.0001,2]
[420057600,1775639438127,-9999.99,0.0001,2]
[420057601,1775639438138,-2459.93,0.0001,2]
[420057602,1775639438147,-150.99,0.0001,2]
[420057603,1775639438157,-48601.16,0.0001,2]
[420057604,1775639438167,-9999.99,0.0001,2]
[420057605,1775639438177,-830.6568414,0.0001,2]
[420057606,1775639438187,-8387.58,0.0001,2]
[420057607,1775639438197,-9999.99,0.0001,2]
[420057608,1775639438207,-218.17026053,0.0001,2]
[420057609,1775639438217,-835.97235223,0.0001,2]
[420057610,1775639438228,-500.0,0.0001,2]
[420057611,1775639438238,-151.0,0.0001,2]
[420057612,1775639438249,-151.0,0.0001,2]
[420057613,1775639438259,-151.0,0.0001,2]
[420057614,1775639438269,-151.0,0.0001,2]
[420057615,1775639438279,-151.0,0.0001,2]
[420057616,1775639438290,-151.0,0.0001,2]
[420057617,1775639438300,-151.0,0.0001,2]
[420057618,1775639438310,-500.0,0.0001,2]
[420057619,1775639438320,-151.0,0.0001,2]
[420057620,1775639438330,-500.0,0.0001,2]
[420057621,1775639438340,-151.0,0.0001,2]
[420057622,1775639438350,-500.0,0.0001,2]
[420057623,1775639438360,-500.0,0.0001,2]
[420057624,1775639438369,-151.0,0.0001,2]
[420057625,1775639438380,-200.0,0.0001,2]
[420057626,1775639438390,-500.0,0.0001,2]
[420057627,1775639438401,-151.0,0.0001,2]
[420057628,1775639438411,-500.0,0.0001,2]
[420057629,1775639438421,-151.0,0.0001,2]
[420057630,1775639438431,-500.0,0.0001,2]
[420057632,1775639438441,-151.0,0.0001,2]
[420057633,1775639438452,-500.0,0.0001,2]
[420057634,1775639438463,-151.0,0.0001,2]
[420057635,1775639438472,-500.0,0.0001,2]
[420057636,1775639438483,-151.0,0.0001,2]
[420057637,1775639438493,-500.0,0.0001,2]
[420057638,1775639438504,-500.0,0.0001,2]
[420057639,1775639438514,-500.0,0.0001,2]
[420057640,1775639438524,-500.0,0.0001,2]
[420057641,1775639438534,-500.0,0.0001,2]
[420057642,1775639438544,-500.0,0.0001,2]
[420057643,1775639438555,-500.0,0.0001,2]
[420057644,1775639438565,-500.0,0.0001,2]
[420057645,1775639438575,-500.0,0.0001,2]
[420057646,1775639438585,-500.0,0.0001,2]
[420057647,1775639438595,-500.0,0.0001,2]
[420057648,1775639439085,-151.0,0.0001,2]
[420057649,1775639439095,-500.0,0.0001,2]
[420057650,1775639439106,-151.0,0.0001,2]
[420057651,1775639439116,-500.0,0.0001,2]
[420057652,1775639439126,-500.0,0.0001,2]
[420057653,1775639439138,-151.0,0.0001,2]
[420057654,1775639439147,-500.0,0.0001,2]
[420057655,1775639439158,-151.0,0.0001,2]
[420057656,1775639439168,-500.0,0.0001,2]
[420057657,1775639439178,-151.0,0.0001,2]
[420057658,1775639439188,-151.0,0.0001,2]
[420057659,1775639439198,-500.0,0.0001,2]
[420057660,1775639439208,-151.0,0.0001,2]
[420057661,1775639439218,-500.0,0.0001,2]
[420057662,1775639439228,-152.45672918,0.0001,2]
[420057663,1775639439238,-500.0,0.0001,2]
[420057664,1775639439249,-151.0,0.0001,2]
[420057665,1775639439258,-500.0,0.0001,2]
[420057666,1775639439269,-151.0,0.0001,2]
[420057667,1775639439279,-151.0,0.0001,2]
[420057668,1775639439289,-500.0,0.0001,2]
[420057669,1775639439300,-151.0,0.0001,2]
[420057670,1775639439310,-151.0,0.0001,2]
[420057671,1775639439321,-151.0,0.0001,2]
[420057672,1775639439331,-151.0,0.0001,2]
[420057673,1775639439342,-151.0,0.0001,2]
[420057674,1775639439352,-151.0,0.0001,2]
[420057675,1775639439362,-151.0,0.0001,2]
[420057676,1775639439373,-151.0,0.0001,2]
[420057677,1775639439383,-151.0,0.0001,2]
[420057678,1775639439393,-151.0,0.0001,2]
[420057679,1775639439403,-1199.20597015,0.0001,2]
[420057680,1775639439413,-290.63824912,0.0001,2]
[420057681,1775639439424,-155.0,0.0001,3]
[420057682,1775639439434,-277.0,0.0001,3]
[420057683,1775639439444,-1500000.0,0.00010072,2]
[420057684,1775639439454,-500.0,0.00010073,2]
[420057685,1775639439463,-500.0,0.00010073,2]
[420057686,1775639439473,-500.0,0.00010073,2]
[420057687,1775639439483,-500.0,0.00010073,2]
[420057688,1775639439492,-500.0,0.00010073,2]
[420057689,1775639439502,-500.0,0.00010073,2]
[420057690,1775639439512,-500.0,0.00010073,2]
[420057691,1775639439522,-281.88719221,0.00010073,2]
[420057692,1775639439532,-500.0,0.00010073,2]
[420057693,1775639439541,-500.0,0.00010073,2]
[420057694,1775639439551,-500.0,0.00010073,2]
[420057695,1775639439561,-169.66281329,0.00010073,2]
[420057696,1775639439570,-500.0,0.00010073,2]
[420057697,1775639439580,-500.22085293,0.00010073,2]
[420057698,1775639439589,-500.0,0.00010073,2]
[420057699,1775639439599,-200.08326476,0.00010073,2]
[420057700,1775639439609,-500.0,0.00010073,2]
[420057701,1775639439618,-500.0,0.00010073,2]
[420057702,1775639439628,-170.15582469,0.00010073,2]
[420057703,1775639439637,-33041.7805,0.00010073,2]
[420057704,1775639439646,-1000.0,0.00010073,2]
[420057705,1775639439655,-5533.0,0.000102,3]
[420057706,1775639439664,-1200.0,0.00010256,2]
[420057707,1775639439674,-895.0,0.00010277,2]
[420057708,1775639439684,-815.0,0.00010297,2]
[420057709,1775639439694,-10000.0,0.000103,2]
[420057710,1775639439704,-1662.0,0.00010318,2]
[420057711,1775639439714,-151.0,0.00010357,2]
[420057712,1775639439724,-5533.0,0.000104,5]
[420057713,1775639439735,-590.0,0.00010437,2]
[420057714,1775639439746,-516.0,0.00010458,2]
[420057715,1775639439757,-1870.0,0.00010478,2]
[420057716,1775639439767,-674.0,0.00010499,2]
[420057717,1775639439777,-725.0,0.0001053,2]
[420057718,1775639439787,-201.60184993,0.00010548,2]
[420057719,1775639439798,-421.45517038,0.00010548,2]
[420057720,1775639439808,-1008.0,0.00010551,2]
[420057721,1775639439818,-500.0,0.00010621,2]
[420057722,1775639439828,-433.0,0.00010652,2]
[420057723,1775639439839,-30064.41066582,0.000107,2]
[420057724,1775639439849,-3272.23205393,0.000109,2]
[420057725,1775639439859,-3272.23205387,0.000109,2]
[420057726,1775639439870,-501.50073946,0.00010959,2]
[420057727,1775639439880,-1680.0,0.00010968,2]
[420057728,1775639439890,-420.0,0.00010969,2]
[420057729,1775639439900,-154.20387248,0.00010969,2]
[420057730,1775639439911,-250.0,0.00010969,2]
[420057731,1775639439921,-193.0,0.00010969,2]
[420057732,1775639439931,-5000.0,0.00010969,2]
[420057733,1775639439942,-600.0,0.00010969,2]
[420057734,1775639439952,-600.0,0.00010969,2]
[420057735,1775639439962,-600.0,0.00010969,2]
[420057736,1775639439972,-600.0,0.00010969,2]
[420057737,1775639439982,-600.0,0.00010969,2]
[420057738,1775639439993,-195.0,0.00010969,2]
[420057739,1775639440003,-195.0,0.00010969,2]
[420057741,1775639440013,-195.0,0.00010969,2]
[420057743,1775639440024,-195.0,0.00010969,2]
[420057744,1775639440034,-195.0,0.00010969,2]
[420057745,1775639440045,-300.0,0.00010969,2]
[420057746,1775639440055,-300.0,0.00010969,2]
[420057747,1775639440065,-300.0,0.00010969,2]
[420057748,1775639440075,-265.76204215,0.00010969,2]
[420057750,1775639440085,-250.0,0.00010969,2]
[420057752,1775639440095,-255.0,0.00010977,2]
[420057753,1775639440105,-221.7705634,0.00010989,2]
[420057754,1775639440116,-31451.11543116,0.00011099,2]
[420057756,1775639440125,-31451.11543114,0.00011099,2]
[420057758,1775639440136,-31451.11543114,0.00011099,2]
[420057760,1775639440146,-10270.07323382,0.00011099,2]
[420057761,1775639440157,-10270.07323375,0.00011099,2]
[420057763,1775639440167,-10270.07323375,0.00011099,2]
[420057764,1775639440177,-1600.0,0.00011173,2]
[420057765,1775639440188,-152.18,0.00011233,2]
[420057766,1775639440197,-171.1442,0.000114,2]
[420057767,1775639440207,-31451.11543114,0.00011498,2]
[420057768,1775639440218,-10270.07323375,0.00011559,2]
[420057770,1775639440227,-3272.23205387,0.00011614,2]
[420057772,1775639440238,-290.34596932,0.00011783,2]
[420057773,1775639440249,-277.0,0.0001192,3]
[420057774,1775639440259,-9030.7576861,0.00011961,2]
[420057775,1775639440270,-1500.0,0.00012,7]
[420057776,1775639440281,-31451.11543114,0.00012031,2]
[420057777,1775639440292,-2351.0,0.00012065,2]
[420057778,1775639440301,-587.0,0.00012066,2]
[420057779,1775639440311,-433.0,0.00012075,2]
[420057780,1775639440321,-10270.07323375,0.00012112,2]
[420057781,1775639440331,-2015.0344087,0.00012399,2]
[420057782,1775639440341,-1600.0,0.00012414,2]
[420057783,1775639440350,-3272.23205387,0.00012471,2]
[420057784,1775639440360,-31451.11543114,0.00012564,2]
[420057785,1775639440371,-10270.07323375,0.00012664,2]
[420057786,1775639440381,-195.269,0.000128,2]
[420057787,1775639440390,-830.65684136,0.000128,2]
[420057788,1775639440400,-290.6382491,0.000129,2]
[420057789,1775639440410,-836.45900119,0.00012937,2]
[420057790,1775639440420,-2313.07312096,0.00012937,2]
[420057791,1775639440429,-81454.46287592,0.00012999,2]
[420057792,1775639440440,-250.0,0.00013,2]
[420057793,1775639440450,-9891.79784251,0.00013,7]
[420057794,1775639440459,-3620.21391383,0.0001305,2]
[420057795,1775639440470,-31451.11543114,0.00013097,2]
[420057796,1775639440480,-507.0,0.000131,2]
[420057797,1775639440489,-1852.42,0.00013187,2]
[420057798,1775639440502,-10270.07323375,0.00013217,2]
[420057799,1775639440511,-3292.0,0.00013271,2]
[420057800,1775639440521,-823.0,0.00013272,2]
[420057801,1775639440531,-736.0,0.00013282,2]
[420057802,1775639440541,-250.0,0.0001333,2]
[420057803,1775639440551,-3240.0,0.00013425,2]
[420057804,1775639440561,-1000.0,0.000135,2]
[420057805,1775639440571,-307687.3724848,0.00013533,2]
[420057806,1775639440581,-858.6473353,0.00013533,2]
[420057807,1775639440591,-31451.11543114,0.00013629,2]
[420057808,1775639440601,-1600.0,0.00013656,2]
[420057809,1775639440611,-500.0,0.00013698,2]
[420057810,1775639440621,-500.0,0.00013698,2]
[420057811,1775639440631,-500.0,0.00013698,2]
[420057812,1775639440641,-500.0,0.00013698,2]
[420057813,1775639440651,-500.0,0.00013698,2]
[420057814,1775639440661,-500.0,0.00013698,2]
[420057815,1775639440671,-500.0,0.00013698,2]
[420057816,1775639440681,-420.19790691,0.00013698,2]
[420057817,1775639440691,-500.0,0.00013698,2]
[420057818,1775639440701,-500.0,0.00013698,2]
[420057819,1775639440712,-633.831471,0.00013698,2]
[420057820,1775639440722,-500.0,0.00013698,2]
[420057821,1775639440731,-500.0,0.00013698,2]
[420057822,1775639440741,-500.0,0.00013698,2]
[420057823,1775639440751,-500.0,0.00013698,2]
[420057824,1775639440762,-454.40497159,0.00013698,2]
[420057825,1775639440772,-568.74,0.00013698,2]
[420057826,1775639440782,-568.74,0.00013698,2]
[420057827,1775639440793,-568.74,0.00013698,2]
[420057828,1775639440803,-568.74,0.00013698,2]
[420057829,1775639440813,-568.74,0.00013698,2]
[420057830,1775639440824,-568.74,0.00013698,2]
[420057831,1775639440834,-568.74,0.00013698,2]
[420057832,1775639440845,-568.74,0.00013698,2]
[420057833,1775639440855,-568.74,0.00013698,2]
[420057834,1775639440864,-568.74,0.00013698,2]
[420057835,1775639440874,-568.74,0.00013698,2]
[420057836,1775639440885,-568.74,0.00013698,2]
[420057837,1775639440895,-568.74,0.00013698,2]
[420057838,1775639440906,-568.74,0.00013698,2]
[420057839,1775639440915,-568.74,0.00013698,2]
[420057840,1775639440925,-568.74,0.00013698,2]
[420057841,1775639440936,-568.74,0.00013698,2]
[420057842,1775639440946,-568.74,0.00013698,2]
[420057843,1775639440956,-568.74,0.00013698,2]
[420057844,1775639440966,-500.0,0.00013698,2]
[420057845,1775639440977,-500.0,0.00013698,2]
[420057846,1775639440987,-500.0,0.00013698,2]
[420057847,1775639440998,-500.0,0.00013698,2]
[420057848,1775639441009,-500.0,0.00013698,2]
[420057849,1775639441019,-500.0,0.00013698,2]
[420057850,1775639441030,-500.0,0.00013698,2]
[420057851,1775639441041,-500.0,0.00013698,2]
[420057852,1775639441052,-500.0,0.00013698,2]
[420057853,1775639441062,-500.0,0.00013698,2]
[420057854,1775639441072,-500.0,0.00013698,2]
[420057855,1775639441083,-500.0,0.00013698,2]
[420057856,1775639441093,-500.0,0.00013698,2]
[420057857,1775639441104,-392.00957995,0.00013698,2]
[420057858,1775639441113,-500.0,0.00013698,2]
[420057859,1775639441123,-500.0,0.00013698,2]
[420057860,1775639441134,-500.0,0.00013698,2]
[420057861,1775639441144,-500.0,0.00013698,2]
[420057862,1775639441154,-500.0,0.00013698,2]
[420057863,1775639441163,-500.0,0.00013698,2]
[420057864,1775639441174,-500.0,0.00013698,2]
[420057865,1775639441185,-500.0,0.00013698,2]
[420057866,1775639441194,-500.0,0.00013698,2]
[420057867,1775639441204,-500.0,0.00013698,2]
[420057868,1775639441214,-500.0,0.00013698,2]
[420057869,1775639441224,-500.0,0.00013698,2]
[420057870,1775639441234,-644.24464926,0.00013698,2]
[420057871,1775639441244,-500.0,0.00013698,2]
[420057872,1775639441254,-500.0,0.00013698,2]
[420057873,1775639441264,-500.0,0.00013698,2]
[420057874,1775639441274,-500.0,0.00013698,2]
[420057875,1775639441284,-500.0,0.00013698,2]
[420057876,1775639441294,-500.0,0.00013698,2]
[420057877,1775639441304,-500.0,0.00013698,2]
[420057878,1775639441314,-500.0,0.00013698,2]
[420057879,1775639441324,-637.2484516,0.00013698,2]
[420057880,1775639441334,-500.0,0.00013698,2]
[420057881,1775639441344,-500.0,0.00013698,2]
[420057882,1775639441354,-500.0,0.00013698,2]
[420057883,1775639441364,-500.0,0.00013698,2]
[420057884,1775639441375,-500.0,0.00013698,2]
[420057885,1775639441384,-500.0,0.00013698,2]
[420057886,1775639441394,-500.0,0.00013698,2]
[420057887,1775639441403,-500.0,0.00013698,2]
[420057888,1775639441413,-500.0,0.00013698,2]
[420057889,1775639441422,-500.0,0.00013698,2]
[420057890,1775639441432,-500.0,0.00013698,2]
[420057891,1775639441442,-500.0,0.00013698,2]
[420057892,1775639441452,-500.0,0.00013698,2]
[420057893,1775639441463,-500.0,0.00013698,2]
[420057894,1775639441473,-522.8150328,0.00013698,2]
[420057895,1775639441483,-500.0,0.00013698,2]
[420057896,1775639441492,-500.0,0.00013698,2]
[420057897,1775639441503,-500.0,0.00013698,2]
[420057898,1775639441512,-500.0,0.00013698,2]
[420057899,1775639441522,-500.0,0.00013698,2]
[420057900,1775639441532,-500.0,0.00013698,2]
[420057901,1775639441542,-500.0,0.00013698,2]
[420057902,1775639441552,-500.0,0.00013698,2]
[420057903,1775639441562,-500.0,0.00013698,2]
[420057904,1775639441572,-500.0,0.00013698,2]
[420057905,1775639441582,-500.0,0.00013698,2]
[420057906,1775639441592,-500.0,0.00013698,2]
[420057907,1775639441602,-500.0,0.00013698,2]
[420057908,1775639441612,-223.3967903,0.00013698,2]
[420057909,1775639441622,-500.03954585,0.00013698,2]
[420057910,1775639441631,-500.0,0.00013698,2]
[420057911,1775639441640,-500.0,0.00013698,2]
[420057912,1775639441651,-500.0,0.00013698,2]
[420057913,1775639441660,-500.0,0.00013698,2]
[420057914,1775639441671,-500.0,0.00013698,2]
[420057915,1775639441681,-500.0,0.00013698,2]
[420057916,1775639441691,-500.0,0.00013698,2]
[420057917,1775639441702,-467.66178343,0.00013698,2]
[420057918,1775639441711,-500.0,0.00013698,2]
[420057919,1775639441721,-500.0,0.00013698,2]
[420057920,1775639441732,-500.0,0.00013698,2]
[420057921,1775639441743,-500.0,0.00013698,2]
[420057922,1775639441753,-500.0,0.00013698,2]
[420057923,1775639441763,-500.0,0.00013698,2]
[420057924,1775639441772,-500.0,0.00013698,2]
[420057925,1775639441783,-500.0,0.00013698,2]
[420057926,1775639441792,-500.14075642,0.00013698,2]
[420057927,1775639441802,-500.0,0.00013698,2]
[420057928,1775639441812,-500.0,0.00013698,2]
[420057930,1775639441822,-500.0,0.00013698,2]
[420057932,1775639441832,-500.0,0.00013698,2]
[420057934,1775639441842,-500.0,0.00013698,2]
[420057936,1775639441852,-500.0,0.00013698,2]
[420057938,1775639441862,-500.0,0.00013698,2]
[420057939,1775639441872,-500.0,0.00013698,2]
[420057940,1775639441882,-500.0,0.00013698,2]
[420057941,1775639441892,-500.0,0.00013698,2]
[420057942,1775639441902,-248.76967055,0.00013698,2]
[420057943,1775639441912,-500.0,0.00013698,2]
[420057944,1775639441922,-500.0,0.00013698,2]
[420057945,1775639441932,-500.0,0.00013698,2]
[420057946,1775639441942,-500.0,0.00013698,2]
[420057947,1775639441953,-500.0,0.00013698,2]
[420057948,1775639441963,-500.0,0.00013698,2]
[420057949,1775639441973,-500.0,0.00013698,2]
[420057950,1775639441984,-500.0,0.00013698,2]
[420057951,1775639441994,-500.0,0.00013698,2]
[420057952,1775639442003,-500.0,0.00013698,2]
[420057953,1775639442013,-500.0,0.00013698,2]
[420057954,1775639442023,-500.0,0.00013698,2]
[420057955,1775639442033,-500.0,0.00013698,2]
[420057956,1775639442043,-514.41880912,0.00013698,2]
[420057957,1775639442053,-500.0,0.00013698,2]
[420057958,1775639442062,-500.0,0.00013698,2]
[420057959,1775639442073,-500.0,0.00013698,2]
[420057960,1775639442083,-500.0,0.00013698,2]
[420057961,1775639442093,-500.0,0.00013698,2]
[420057962,1775639442104,-500.0,0.00013698,2]
[420057963,1775639442114,-500.0,0.00013698,2]
[420057964,1775639442124,-500.0,0.00013698,2]
[420057965,1775639442133,-500.0,0.00013698,2]
[420057966,1775639442144,-500.0,0.00013698,2]
[420057967,1775639442154,-500.0,0.00013698,2]
[420057968,1775639442164,-500.0,0.00013698,2]
[420057969,1775639442174,-500.0,0.00013698,2]
[420057970,1775639442185,-500.0,0.00013698,2]
[420057971,1775639442194,-630.71,0.00013698,2]
[420057972,1775639442205,-500.0,0.00013698,2]
[420057973,1775639442216,-500.0,0.00013698,2]